[Event "Queens Festival Final-A 2022"]
[Site "Tornelo"]
[Date "2022.06.25"]
[Round "8.1"]
[White "Balabayeva, Xeniya"]
[Black "Castrillon Gomez, Melissa"]
[Result "1-0"]
[ECO "D00"]
[WhiteElo "2177"]
[BlackElo "2198"]
[Annotator "RC"]
[PlyCount "119"]
[EventDate "2022.06.24"]
[EventType "tourn"]
[EventCountry "NET"]
[SourceTitle "playchess.com"]
[Source "ChessBase"]
[SourceQuality "1"]
[TimeControl "180+2"]

1. d4 {[%emt 0:00:02]} Nf6 {[%emt 0:00:05]} 2. Bf4 {[%emt 0:00:03]} d5 {[%emt 0:00:03]} 3. e3 {[%emt 0:00:01]} c5 {[%emt 0:00:01]} 4. dxc5 {[%emt 0:00:01]} e6 {[%emt 0:00:11]} 5. Bb5+ {[%emt 0:00:03]} Bd7 {[%emt 0:00:05]} 6. Bxd7+ {[%emt 0:00:02]} Nbxd7 {[%emt 0:00:02]} 7. Nf3 {[%emt 0:00:33]} Bxc5 {[%emt 0:00:03]} 8. Nbd2 {[%emt 0:00:02]} O-O {[%emt 0:00:02]} 9. O-O {[%emt 0:00:03]} h6 {[%emt 0:00:04]} 10. c4 {[%emt 0:00:04]} Rc8 {[%emt 0:00:06]} 11. Rc1 {[%emt 0:00:02]} Nb6 {[%emt 0:00:10]} 12. b3 {[%emt 0:00:12]} dxc4 {[%emt 0:00:07]} 13. Nxc4 {[%emt 0:00:03]} Nbd5 {[%emt 0:00:04]} 14. Be5 {[%emt 0:00:12]} b5 {[%emt 0:00:07]} 15. Nb2 {[%emt 0:00:02]} Ba3 {[%emt 0:00:13]} 16. Qe2 {[%emt 0:00:04]} Ne4 {[%emt 0:00:15]} 17. Rxc8 {[%emt 0:00:58]} Qxc8 {[%emt 0:00:02]} 18. Nd3 {[%emt 0:00:02]} Bd6 {[%emt 0:00:23]} 19. Bxd6 {[%emt 0:00:08]} Nxd6 {[%emt 0:00:01]} 20. Rc1 {[%emt 0:00:02]} Qb8 {[%emt 0:00:15]} 21. e4 {[%emt 0:00:02]} Nb6 {[%emt 0:00:12]} 22. Nd4 {[%emt 0:00:12]} a6 {[%emt 0:00:16]} 23. e5 {[%emt 0:00:12]} Nf5 {[%emt 0:00:27]} 24. Nxf5 {[%emt 0:00:02]} exf5 {[%emt 0:00:01]} 25. Nb4 {[%emt 0:00:13]} Re8 {[%emt 0:00:12]} 26. Nxa6 {[%emt 0:00:13]} Qxe5 {[%emt 0:00:03]} 27. Qxe5 {[%emt 0:00:02]} Rxe5 {[%emt 0:00:01]} 28. Kf1 {[%emt 0:00:01]} g6 {[%emt 0:00:06]} 29. Nc7 {[%emt 0:00:03]} Kg7 {[%emt 0:00:04]} 30. Rc6 {[%emt 0:00:03]} Nd5 {[%emt 0:00:05]} 31. Nxd5 {[%emt 0:00:15]} Rxd5 {[%emt 0:00:02]} 32. Ke2 {[%emt 0:00:01]} b4 {[%emt 0:00:06]} 33. Rc2 {[%emt 0:00:03]} Kf6 {[%emt 0:00:03]} 34. f4 {[%emt 0:00:01]} Ra5 {[%emt 0:00:02]} 35. Kd3 {[%emt 0:00:02]} g5 {[%emt 0:00:02]} 36. fxg5+ {[%emt 0:00:02]} hxg5 {[%emt 0:00:02]} 37. Kc4 {[%emt 0:00:01]} f4 {[%emt 0:00:03]} 38. Kxb4 {[%emt 0:00:01]} Re5 {[%emt 0:00:01]} 39. a4 {[%emt 0:00:02]} g4 {[%emt 0:00:01]} 40. a5 {[%emt 0:00:02]} f3 {[%emt 0:00:02]} 41. gxf3 {[%emt 0:00:01]} gxf3 {[%emt 0:00:00]} 42. Rf2 {[%emt 0:00:01]} Re4+ {[%emt 0:00:07]} 43. Kb5 {[%emt 0:00:03]} Re3 {[%emt 0:00:01]} 44. b4 {[%emt 0:00:02]} Ke5 {[%emt 0:00:02]} 45. a6 {[%emt 0:00:01]} Ke4 {[%emt 0:00:04]} 46. Ra2 {[%emt 0:00:02]} Re2 {[%emt 0:00:02]} 47. Rxe2+ {[%emt 0:00:02]} fxe2 {[%emt 0:00:02]} 48. a7 {[%emt 0:00:01]} e1=Q {[%emt 0:00:02]} 49. a8=Q+ {[%emt 0:00:02]} Kf4 {[%emt 0:00:02]} 50. Qb8+ {[%emt 0:00:01]} Kg5 {[%emt 0:00:05]} 51. Qg3+ {[%emt 0:00:03]} Qxg3 {[%emt 0:00:01]} 52. hxg3 {[%emt 0:00:00]} Kg4 {[%emt 0:00:01]} 53. Kc4 {[%emt 0:00:03]} Kxg3 {[%emt 0:00:00]} 54. b5 {[%emt 0:00:01]} f5 {[%emt 0:00:00]} 55. b6 {[%emt 0:00:01]} f4 {[%emt 0:00:00]} 56. b7 {[%emt 0:00:01]} f3 {[%emt 0:00:01]} 57. b8=Q+ {[%emt 0:00:01]} Kg2 {[%emt 0:00:00]} 58. Qg8+ {[%emt 0:00:02]} Kh1 {[%emt 0:00:03]} 59. Kd3 {[%emt 0:00:02]} f2 {[%emt 0:00:01]} 60. Ke2 {[%emt 0:00:02]} 1-0

[Event "Queens Festival Final-A 2022"]
[Site "Tornelo"]
[Date "2022.06.25"]
[Round "8.2"]
[White "Okuyaz, Duru"]
[Black "Alboredo, Julia"]
[Result "0-1"]
[ECO "B51"]
[WhiteElo "2090"]
[BlackElo "2252"]
[Annotator "TA"]
[PlyCount "88"]
[EventDate "2022.06.24"]
[EventType "tourn"]
[EventCountry "NET"]
[SourceTitle "playchess.com"]
[Source "ChessBase"]
[SourceQuality "1"]
[TimeControl "180+2"]

{[%evp 20,87,43,34,36,30,37,33,35,34,23,23,43,35,43,23,31,28,71,57,87,16,73,41,35,46,33,-96,-88,-265,-127,-845,-536,-518,-531,-531,-525,-898,-895,-877,-851,-763,-481,-627,-616,-671,-664,-696,-685,-727,-705,-807,-548,-538,-532,-583,-572,-627,-629,-687,-666,-792,-762,-1287,-1248,-971,-961,-29981,-29982,-29999]} 1. e4 {[%emt 0:00:02]} c5 {[%emt 0:00:05]} 2. Nf3 {[%emt 0:00:02]} d6 {[%emt 0:00:01]} 3. Bb5+ {[%emt 0:00:01]} Nc6 {[%emt 0:00:02]} 4. O-O {[%emt 0:00:02]} Bd7 {[%emt 0:00:01]} 5. Re1 {[%emt 0:00:02]} a6 {[%emt 0:00:02]} 6. Bf1 {[%emt 0:00:02]} Bg4 {[%emt 0:00:01]} 7. h3 {[%emt 0:00:01]} Bxf3 {[%emt 0:00:02]} 8. Qxf3 {[%emt 0:00:01]} g6 {[%emt 0:00:02]} 9. c3 {[%emt 0:00:01]} Bg7 {[%emt 0:00:05]} 10. d3 {[%emt 0:00:02]} Nf6 {[%emt 0:00:02]} 11. Be3 {[%emt 0:00:03]} O-O {[%emt 0:00:02] B51: Sicilian: Moscow Variation (3 Bb5+) without 3...Bd7.} 12. Nd2 {[%emt 0:00:02]} Nd7 {[%emt 0:00:05]} 13. Qd1 {[%emt 0:00:04]} b5 {[%emt 0:00:03] White is slightly better.} 14. f4 {[%emt 0:00:07]} b4 {[%emt 0:00:04]} 15. Rc1 {[%emt 0:00:01] [#]} bxc3 $146 {[%emt 0:00:02]} ({Predecessor:} 15... a5 16. Nf3 Rb8 17. d4 bxc3 18. bxc3 Qb6 19. e5 dxe5 20. fxe5 e6 21. Qe2 Ne7 {0-1 (67) Balabayeva,K (2146)-Popadic,D (2157) Chess.com INT 2020}) 16. bxc3 {[%emt 0:00:01]} Rb8 {[%emt 0:00:04]} 17. Nf3 {[%emt 0:00:05]} Qa5 {[%emt 0:00:03]} 18. d4 {[%emt 0:00:02]} Rb2 {[%emt 0:00:17]} 19. e5 {[%emt 0:00:07]} dxe5 {[%emt 0:00:08]} 20. fxe5 {[%emt 0:00:08]} (20. dxe5 $16 Rd8 21. Nd2) 20... Rd8 {[%emt 0:00:12]} (20... e6 $11) 21. e6 {[%emt 0:00:11]} (21. Nd2 $5 {[%cal Rd2c4]} Qc7 22. Qa4 $16) 21... fxe6 {[%emt 0:00:05]} 22. Bc4 {[%emt 0:00:01]} Nf8 {[%emt 0:00:02]} 23. Ng5 {[%emt 0:00:05]} (23. Kh1 $14 {stays ahead.}) 23... cxd4 $17 {[%emt 0:00:08] Black converts the advantage convincingly.} 24. cxd4 {[%emt 0:00:28]} (24. Qg4 $17 Bf6 25. Nxe6 Nxe6 26. Qxe6+ Kh8 27. cxd4 Nxd4 28. Bxd4 Bxd4+ 29. Kh1) 24... Nxd4 {[%emt 0:00:06]} ({Stronger than} 24... Bxd4 25. Qg4 Bxe3+ 26. Rxe3 $17) (24... Rxd4 $19 {and Black stays clearly on top.} 25. Bxd4 (25. Qf3 $2 Rxc4 26. Qf7+ Kh8 $19) 25... Bxd4+ 26. Kh1 Qxg5) 25. Bxd4 {[%emt 0:00:06][%mdl 8192]} (25. Qg4 $17) 25... Bxd4+ {[%emt 0:00:03]} 26. Kh1 {[%emt 0:00:02][%cal Oe1e6]} Qxg5 {[%emt 0:00:03][%csl Gb2][%cal Rg5g2] [#]} 27. Qf3 {[%emt 0:00:07]} Rf2 {[%emt 0:00:12]} 28. Qe4 {[%emt 0:00:05]} Bb2 {[%emt 0:00:13]} 29. Rcd1 {[%emt 0:00:04]} Rxd1 {[%emt 0:00:05]} 30. Rxd1 {[%emt 0:00:01]} Qf5 {[%emt 0:00:09]} 31. Qe3 {[%emt 0:00:05]} Be5 {[%emt 0:00:07]} 32. Re1 {[%emt 0:00:05]} Bd6 {[%emt 0:00:02]} 33. Bxa6 {[%emt 0:00:03]} Rxa2 {[%emt 0:00:06]} 34. Bc4 {[%emt 0:00:02]} Rf2 {[%emt 0:00:04]} 35. Ra1 {[%emt 0:00:05]} Qe5 {[%emt 0:00:21]} 36. Qxe5 {[%emt 0:00:03]} Bxe5 {[%emt 0:00:00]} 37. Ra5 {[%emt 0:00:04]} Bd6 {[%emt 0:00:02] Strongly threatening ...Rc2.} 38. Ra1 {[%emt 0:00:04]} Kg7 {[%emt 0:00:04]} 39. Re1 {[%emt 0:00:02]} e5 {[%emt 0:00:02][%cal Be6e5,Be5e4][%mdl 32]} 40. Bd5 {[%emt 0:00:08]} Nd7 {[%emt 0:00:03]} 41. Ra1 {[%emt 0:00:04]} Nf6 {[%emt 0:00:01]} 42. Bc6 {[%emt 0:00:03]} e4 {[%emt 0:00:02] [#] ( -> ...Bg3)} 43. Re1 {[%emt 0:00:02]} Bg3 {[%emt 0:00:19]} 44. Re3 {[%emt 0:00:03]} Rf1# {[%emt 0:00:02] Weighted Error Value: White=0.83/Black=0.40} 0-1

[Event "Queens Festival Final-A 2022"]
[Site "Tornelo"]
[Date "2022.06.25"]
[Round "8.3"]
[White "Cori T., Deysi"]
[Black "Yuan, Ye"]
[Result "1-0"]
[ECO "D45"]
[WhiteElo "2367"]
[BlackElo "2108"]
[Annotator "TA"]
[PlyCount "37"]
[EventDate "2022.06.24"]
[EventType "tourn"]
[EventCountry "NET"]
[SourceTitle "playchess.com"]
[Source "ChessBase"]
[SourceQuality "1"]
[TimeControl "180+2"]

{[%evp 13,37,0,22,33,18,23,32,16,25,28,10,0,0,0,0,0,0,-92,-47,-28,16,0,3,0,0,0]} 1. d4 {[%emt 0:00:02]} d5 {[%emt 0:00:05]} 2. Nf3 {[%emt 0:00:02]} Nf6 {[%emt 0:00:02]} 3. c4 {[%emt 0:00:02]} c6 {[%emt 0:00:01]} 4. Nc3 {[%emt 0:00:01]} e6 {[%emt 0:00:06]} 5. e3 {[%emt 0:00:01]} Nbd7 {[%emt 0:00:01]} 6. Qc2 {[%emt 0:00:02]} Bd6 {[%emt 0:00:06]} 7. b3 {[%emt 0:00:10]} e5 {[%emt 0:00:10]} 8. cxd5 {[%emt 0:00:06] D45: Semi-Slav: 5 e3.} cxd5 {[%emt 0:00:09]} 9. Nb5 {[%emt 0:00:02]} Bb4+ {[%emt 0:00:03]} 10. Bd2 $1 {[%emt 0:00:02] White is slightly better.} Bxd2+ {[%emt 0:00:08]} 11. Qxd2 {[%emt 0:00:13] [#] Hoping for Qb4.} Ne4 {[%emt 0:00:26]} 12. Qb4 {[%emt 0:00:05]} a6 {[%emt 0:00:03]} 13. Nd6+ {[%emt 0:00:09]} Nxd6 {[%emt 0:00:05]} 14. Qxd6 {[%emt 0:00:00] [#]} e4 $146 {[%emt 0:00:03]} ({Predecessor:} 14... Qa5+ 15. b4 Qa3 16. Rd1 Qc3+ 17. Nd2 exd4 18. exd4 Qxd4 19. Nb3 Qe4+ 20. Kd2 Ne5 {½-½ (60) Pogorelov,R (2383)-Hernandez Munoz,A (2255) Penafiel 2020}) 15. Ne5 {[%emt 0:00:11]} (15. Nd2 $11) 15... Nxe5 {[%emt 0:00:51]} 16. Qxe5+ {[%emt 0:00:01]} Kf8 {[%emt 0:00:02]} (16... Be6 $5 {[%cal Rd8a5]} 17. a3 (17. Qxg7 $2 Qa5+ 18. Kd1 Kd7 $19) 17... O-O $15) 17. Be2 {[%emt 0:00:06] The position is equal.} Qa5+ {[%emt 0:00:02]} 18. Kf1 {[%emt 0:00:02]} Be6 {[%emt 0:00:02]} 19. f4 {[%emt 0:01:20][%mdl 32768] Weighted Error Value: White=0.19 (very precise) /Black=0.12 (very precise) . Loss on time!?} 1-0

[Event "Queens Festival Final-A 2022"]
[Site "Tornelo"]
[Date "2022.06.25"]
[Round "8.4"]
[White "Song, Yuxin"]
[Black "Gueci, Tea"]
[Result "1-0"]
[ECO "B31"]
[WhiteElo "2317"]
[BlackElo "2248"]
[Annotator "TA"]
[PlyCount "69"]
[EventDate "2022.06.24"]
[EventType "tourn"]
[EventCountry "NET"]
[SourceTitle "playchess.com"]
[Source "ChessBase"]
[SourceQuality "1"]
[TimeControl "180+2"]

{[%evp 14,69,23,14,45,0,0,0,10,0,0,0,0,0,0,0,9,8,18,-19,14,10,47,62,126,124,113,132,313,316,457,441,466,322,337,326,330,293,595,595,626,580,593,589,578,381,381,372,1036,1025,1025,1034,1009,1014,1102,1072,1093,1047]} 1. e4 {[%emt 0:00:02]} c5 {[%emt 0:00:05]} 2. Nf3 {[%emt 0:00:02]} Nc6 {[%emt 0:00:01]} 3. Bb5 {[%emt 0:00:01]} g6 {[%emt 0:00:02]} 4. O-O {[%emt 0:00:01]} Bg7 {[%emt 0:00:02]} 5. Re1 {[%emt 0:00:02]} e5 {[%emt 0:00:04]} 6. Bxc6 {[%emt 0:00:02]} dxc6 {[%emt 0:00:03]} 7. d3 {[%emt 0:00:01]} Qe7 {[%emt 0:00:11]} 8. a3 {[%emt 0:00:02]} f6 {[%emt 0:00:05] B31: Sicilian: 2...Nc6 3 Bb5 g6.} 9. Bd2 {[%emt 0:00:32][%cal Bc1d2,Bd2b4,Bb4c3][%mdl 32] [#]} Nh6 $146 {[%emt 0:00:03]} ({Predecessor:} 9... a5 10. a4 Nh6 11. Na3 Nf7 12. Nc4 Qc7 13. Bc3 O-O 14. Nh4 b6 15. b3 Ng5 {0-1 (40) Sorokin,M-Pigusov,E (2455) Togliatti 1985}) 10. b4 {[%emt 0:00:01]} Nf7 {[%emt 0:00:09] The position is equal.} 11. h3 {[%emt 0:00:10]} Be6 {[%emt 0:00:03]} 12. bxc5 {[%emt 0:00:15]} Qxc5 {[%emt 0:00:00]} 13. Bb4 {[%emt 0:00:01]} Qb6 {[%emt 0:00:02]} 14. Nc3 {[%emt 0:00:12][%cal Bb1c3,Bc3a4,Ba4c5][%mdl 32]} a5 {[%emt 0:00:18]} 15. Na4 {[%emt 0:00:01]} Qc7 {[%emt 0:00:20]} 16. Nc5 {[%emt 0:00:34]} Nd8 {[%emt 0:00:14]} (16... Bxh3 $5 17. gxh3 Qe7 $11) 17. Bc3 {[%emt 0:00:04]} Bf7 {[%emt 0:00:04]} 18. d4 $1 {[%emt 0:00:03]} O-O {[%emt 0:00:06]} ({Black should play} 18... Ne6 $14) 19. dxe5 $16 {[%emt 0:00:03]} fxe5 {[%emt 0:00:02]} 20. Qd7 {[%emt 0:00:28] Prevents Be6. White is much more active.} Qb6 {[%emt 0:00:11] [#] Loses the game.} (20... Qxd7 $16 {is a better defense.} 21. Nxd7 Re8 22. Bxe5 Be6) 21. Qd6 $18 {[%emt 0:00:03]} Re8 {[%emt 0:00:19]} (21... Bc4 $142 22. Nd7 (22. Bxe5 Nf7 $16) 22... Qa7 23. Nxf8 Nf7) 22. Nd7 {[%emt 0:00:02] Pair of Knights!} Qa7 {[%emt 0:00:11]} 23. Nf6+ {[%emt 0:00:02]} Bxf6 {[%emt 0:00:05]} 24. Qxf6 {[%emt 0:00:01]} Re6 {[%emt 0:00:01]} 25. Qg5 {[%emt 0:00:01]} h6 $2 {[%emt 0:00:07]} (25... Qc5 {is a better chance.}) 26. Qxh6 {[%emt 0:00:03]} Qc5 {[%emt 0:00:06]} 27. Re3 {[%emt 0:00:13][%cal Be1e3,Be3f3,Bf3f6,Bf6e6][%mdl 32]} Be8 {[%emt 0:00:16]} 28. Ng5 {[%emt 0:00:10][%cal Bf3g5,Bg5e6,Be6c5][%mdl 32]} Re7 {[%emt 0:00:05] Inhibits Qh7+.} 29. Rf3 {[%emt 0:00:03][%csl Gh6][%cal Rf3f8]} Rg7 {[%emt 0:00:06]} 30. Rd1 {[%emt 0:00:03][%cal Od1d8] And now Rxd8! would win.} Nf7 {[%emt 0:00:05] [#]} (30... Qe7 31. Rfd3 Nf7 32. Nxf7 Rxf7 33. Qxg6+ Rg7) 31. Qxg7+ $3 {[%emt 0:00:03][%mdl 512] White is clearly winning.} Kxg7 {[%emt 0:00:03]} 32. Ne6+ {[%emt 0:00:01]} Kg8 {[%emt 0:00:01]} 33. Nxc5 {[%emt 0:00:02]} b5 {[%emt 0:00:06]} 34. Rf6 {[%emt 0:00:06]} Kg7 {[%emt 0:00:02]} 35. Re6 {[%emt 0:00:02] Weighted Error Value: White=0.19 (very precise) /Black=0.47} 1-0

[Event "Queens Festival Final-A 2022"]
[Site "Tornelo"]
[Date "2022.06.25"]
[Round "9.1"]
[White "Yuan, Ye"]
[Black "Song, Yuxin"]
[Result "1-0"]
[ECO "D00"]
[WhiteElo "2108"]
[BlackElo "2317"]
[Annotator "TA"]
[PlyCount "41"]
[EventDate "2022.06.24"]
[EventType "tourn"]
[EventCountry "NET"]
[SourceTitle "playchess.com"]
[Source "ChessBase"]
[SourceQuality "1"]
[TimeControl "180+2"]

{[%evp 9,40,-40,0,-34,-38,-34,-48,-56,-46,-60,-68,-82,-35,-45,-10,-13,1,-35,3,0,72,78,105,112,163,160,158,142,141,113,2831,2731,29999]} 1. d4 {[%emt 0:00:02]} Nf6 {[%emt 0:00:04]} 2. Bg5 {[%emt 0:00:04]} d5 {[%emt 0:00:02]} 3. Bxf6 {[%emt 0:00:05]} gxf6 {[%emt 0:00:03]} 4. Nd2 {[%emt 0:00:02]} c5 {[%emt 0:00:17]} 5. e3 {[%emt 0:00:07]} Nc6 {[%emt 0:00:02]} 6. c3 {[%emt 0:00:04] D00: 1 d4 d5: Unusual lines.} e5 {[%emt 0:00:02]} 7. dxc5 {[%emt 0:00:07]} Bxc5 {[%emt 0:00:02] [#]} 8. b4 $146 {[%emt 0:00:01] Black is slightly better.} ({Predecessor:} 8. Ngf3 Be6 9. g3 Qd7 10. Bg2 O-O-O 11. O-O Bh3 12. Nh4 Bg4 13. Qa4 Kb8 14. Nb3 {½-½ (96) Bartel,M (2648)-Jones,G (2670) Chess.com INT 2020}) 8... Bd6 {[%emt 0:00:11]} 9. Nb3 {[%emt 0:00:05]} Be6 {[%emt 0:00:02]} 10. Nf3 {[%emt 0:00:09]} a6 {[%emt 0:00:09]} (10... Qc7 $17 {[%cal Od5d4]} 11. a3 O-O) 11. Be2 $15 {[%emt 0:00:07]} Rg8 {[%emt 0:00:06]} 12. g3 {[%emt 0:00:08]} Bh3 {[%emt 0:00:24]} 13. Nh4 {[%emt 0:00:04]} Be6 {[%emt 0:00:05]} 14. Qc2 {[%emt 0:00:05]} Rg7 {[%emt 0:00:18]} (14... Ne7 $11 {keeps the balance.}) 15. Nf5 $16 {[%emt 0:00:05]} Bxf5 {[%emt 0:00:04]} 16. Qxf5 {[%emt 0:00:02]} Ne7 {[%emt 0:00:09]} (16... Rg6 $16) 17. Qxf6 $18 {[%emt 0:00:03]} Kf8 {[%emt 0:00:11]} 18. Rd1 {[%emt 0:00:13]} Qc7 {[%emt 0:00:03]} 19. Nc5 {[%emt 0:00:12] [#] Black must now prevent Ne6+. White is more active.} b6 $2 {[%emt 0:00:27][%mdl 8192]} (19... Kg8 $16) 20. Ne6+ $1 {[%emt 0:00:06]} Kg8 {[%emt 0:00:03]} 21. Qxg7# {[%emt 0:00:02] Weighted Error Value: White=0.13 (very precise) /Black=0.66} 1-0

[Event "Queens Festival Final-A 2022"]
[Site "Tornelo"]
[Date "2022.06.25"]
[Round "9.2"]
[White "Alboredo, Julia"]
[Black "Cori T., Deysi"]
[Result "0-1"]
[ECO "E11"]
[WhiteElo "2252"]
[BlackElo "2367"]
[Annotator "TA"]
[PlyCount "88"]
[EventDate "2022.06.24"]
[EventType "tourn"]
[EventCountry "NET"]
[SourceTitle "playchess.com"]
[Source "ChessBase"]
[SourceQuality "1"]
[TimeControl "180+2"]

{[%evp 15,88,35,75,76,75,84,84,79,84,83,87,87,95,91,84,94,97,0,41,0,46,49,58,-24,-23,-23,-25,-26,-25,-29,-12,-19,-6,-6,-6,-6,-5,-6,-4,-65,-65,-63,-52,-52,-38,-37,-38,-42,-35,-50,-27,-42,-40,-41,-45,-71,-40,-40,-30,-95,-95,-95,-95,-95,-95,-95,-95,-5477,-831,-2958,-2733,-2110,-1981,-1707,-1508]} 1. d4 {[%emt 0:00:02]} Nf6 {[%emt 0:00:05]} 2. Nf3 {[%emt 0:00:03]} e6 {[%emt 0:00:01]} 3. c4 {[%emt 0:00:02]} Bb4+ {[%emt 0:00:02]} 4. Bd2 {[%emt 0:00:02]} Qe7 {[%emt 0:00:02]} 5. g3 {[%emt 0:00:03]} O-O {[%emt 0:00:02]} 6. Bg2 {[%emt 0:00:01]} Nc6 {[%emt 0:00:01]} 7. Nc3 {[%emt 0:00:02]} d6 {[%emt 0:00:04]} 8. O-O {[%emt 0:00:03]} e5 {[%emt 0:00:05]} 9. Nd5 {[%emt 0:00:30] E11: Bogo-Indian.} Nxd5 {[%emt 0:00:12]} 10. cxd5 {[%emt 0:00:00]} Bxd2 {[%emt 0:00:01]} 11. dxc6 {[%emt 0:00:02] White is better.} Ba5 {[%emt 0:00:09]} 12. dxe5 {[%emt 0:00:03] [#]} dxe5 $146 {[%emt 0:00:31]} ({Predecessor:} 12... bxc6 13. exd6 cxd6 14. Nd4 Bd7 15. Bxc6 Rac8 16. Bxd7 Qxd7 17. Qd3 Bb6 18. Nb5 d5 {1-0 (49) Martirosyan,H (2515)-Rueetschi,U (2266) Zuerich 2017}) 13. Qd5 {[%emt 0:00:07][%csl LRa5,LRb7,LRe5]} b6 {[%emt 0:00:01]} 14. Qxe5 {[%emt 0:00:11]} (14. a3 {is interesting.} e4 15. Ne5 Be6 16. Qxe4 Bb3 17. Qf5) 14... Qxe5 {[%emt 0:00:12]} 15. Nxe5 {[%emt 0:00:00]} Re8 {[%emt 0:00:02] [#]} 16. Nd3 {[%emt 0:00:03]} (16. Rfd1 $1 $16) 16... Ba6 {[%emt 0:00:06]} 17. Bf3 {[%emt 0:00:19]} (17. Rfd1 $5 {[%cal Ra2a3]}) 17... Rad8 {[%emt 0:00:07]} (17... Bxd3 $11 {might be stronger.} 18. exd3 Rad8) 18. Nf4 $14 {[%emt 0:00:02]} Bd2 {[%emt 0:00:17]} 19. Nd5 {[%emt 0:00:05]} ({White should play} 19. Rfd1 $14) 19... Bxe2 $11 {[%emt 0:00:02]} 20. Bxe2 {[%emt 0:00:15]} Rxd5 {[%emt 0:00:04]} 21. Bf3 {[%emt 0:00:02]} Rd6 {[%emt 0:00:03]} 22. Rfd1 {[%emt 0:00:03]} Bb4 {[%emt 0:00:02]} 23. a3 {[%emt 0:00:05]} Rxd1+ {[%emt 0:00:03]} 24. Rxd1 {[%emt 0:00:04]} Re1+ {[%emt 0:00:08]} 25. Rxe1 {[%emt 0:00:03]} Bxe1 {[%emt 0:00:00][%mdl 4096] Endgame KB-KB} 26. Kf1 {[%emt 0:00:01]} Bd2 {[%emt 0:00:01]} 27. Ke2 {[%emt 0:00:02]} ({Better is} 27. b4 $11) 27... Bc1 $15 {[%emt 0:00:03]} 28. b4 {[%emt 0:00:05]} Bxa3 {[%emt 0:00:13]} 29. b5 {[%emt 0:00:01]} Bc5 {[%emt 0:00:01]} 30. Be4 {[%emt 0:00:03]} Kf8 {[%emt 0:00:07]} 31. f3 {[%emt 0:00:08]} h5 {[%emt 0:00:09]} 32. h3 {[%emt 0:00:08]} g5 {[%emt 0:00:04]} 33. g4 {[%emt 0:00:02]} h4 {[%emt 0:00:04]} 34. Kd3 {[%emt 0:00:04]} Ke7 {[%emt 0:00:02]} 35. Bd5 {[%emt 0:00:03]} f6 {[%emt 0:00:05]} (35... Kd6 $5 {[%cal Rd6d5]} 36. Ke4 Ba3 $15) 36. Ke4 {[%emt 0:00:02]} Bd6 {[%emt 0:00:02]} 37. Kf5 {[%emt 0:00:03]} (37. Bc4 $11 {keeps the balance.}) 37... Bg3 $17 {[%emt 0:00:03] [#] Threatens to win with ...Kd6.} 38. Bc4 {[%emt 0:00:06]} Be5 {[%emt 0:00:03]} 39. Ke4 {[%emt 0:00:12]} Kd6 {[%emt 0:00:01]} 40. Bf1 {[%emt 0:00:02]} Kc5 {[%emt 0:00:02]} 41. Kf5 $2 {[%emt 0:00:02][%mdl 8192] This move loses the game for White.} (41. Bd3 $17) 41... Kd4 $19 {[%emt 0:00:09] Black is clearly winning.} 42. Be2 {[%emt 0:00:10]} Ke3 {[%emt 0:00:02]} 43. Bd1 {[%emt 0:00:06]} Kf2 {[%emt 0:00:01]} 44. Ke6 {[%emt 0:00:01]} Kg3 {[%emt 0:00:02] Weighted Error Value: White=0.60/Black=0.08 (flawless)} 0-1

[Event "Queens Festival Final-A 2022"]
[Site "Tornelo"]
[Date "2022.06.25"]
[Round "9.3"]
[White "Castrillon Gomez, Melissa"]
[Black "Okuyaz, Duru"]
[Result "1-0"]
[ECO "D12"]
[WhiteElo "2198"]
[BlackElo "2090"]
[Annotator "RC"]
[PlyCount "77"]
[EventDate "2022.06.24"]
[EventType "tourn"]
[EventCountry "NET"]
[SourceTitle "playchess.com"]
[Source "ChessBase"]
[SourceQuality "1"]
[TimeControl "180+2"]

1. d4 {[%emt 0:00:02]} d5 {[%emt 0:00:04]} 2. c4 {[%emt 0:00:02]} c6 {[%emt 0:00:01]} 3. Nf3 {[%emt 0:00:02]} Nf6 {[%emt 0:00:01]} 4. e3 {[%emt 0:00:01]} Bf5 {[%emt 0:00:02]} 5. Nc3 {[%emt 0:00:01]} e6 {[%emt 0:00:01]} 6. Nh4 {[%emt 0:00:03]} Bg4 {[%emt 0:00:02]} 7. f3 {[%emt 0:00:03]} Bh5 {[%emt 0:00:01]} 8. g3 {[%emt 0:00:01]} Nbd7 {[%emt 0:00:02]} 9. Be2 {[%emt 0:00:03]} Be7 {[%emt 0:00:01]} 10. Bd2 {[%emt 0:00:01]} a6 {[%emt 0:00:03]} 11. c5 {[%emt 0:00:04]} b6 {[%emt 0:00:03]} 12. b4 {[%emt 0:00:15]} a5 {[%emt 0:00:02]} 13. b5 {[%emt 0:00:05]} bxc5 {[%emt 0:00:17]} 14. bxc6 {[%emt 0:00:02]} Nb6 {[%emt 0:00:08]} 15. Bb5 {[%emt 0:00:13]} O-O {[%emt 0:00:02]} 16. Ng2 {[%emt 0:00:12]} cxd4 {[%emt 0:00:08]} 17. exd4 {[%emt 0:00:02]} Nc4 {[%emt 0:00:05]} 18. O-O {[%emt 0:00:14]} Nxd2 {[%emt 0:00:17]} 19. Qxd2 {[%emt 0:00:03]} Bb4 {[%emt 0:00:02]} 20. a3 {[%emt 0:00:10]} Bd6 {[%emt 0:00:09]} 21. Nf4 {[%emt 0:00:19]} Rb8 {[%emt 0:00:08]} 22. a4 {[%emt 0:00:27]} e5 {[%emt 0:00:12]} 23. Nfxd5 {[%emt 0:00:07]} exd4 {[%emt 0:00:33]} 24. Qxd4 {[%emt 0:00:11]} Nxd5 {[%emt 0:00:02]} 25. Qxd5 {[%emt 0:00:11]} Bg6 {[%emt 0:00:01]} 26. Kg2 {[%emt 0:00:09]} Bb4 {[%emt 0:00:08]} 27. Rac1 {[%emt 0:00:26]} Qb6 {[%emt 0:00:17]} 28. Ne4 {[%emt 0:00:04]} Rbd8 {[%emt 0:00:03]} 29. Qc4 {[%emt 0:00:03]} Bxe4 {[%emt 0:00:04]} 30. Qxe4 {[%emt 0:00:02]} Rd2+ {[%emt 0:00:01]} 31. Kh3 {[%emt 0:00:02]} Qc7 {[%emt 0:00:12]} 32. Rcd1 {[%emt 0:00:08]} Rb2 {[%emt 0:00:04]} 33. Rd7 {[%emt 0:00:04]} Qc8 {[%emt 0:00:01]} 34. Rfd1 {[%emt 0:00:02]} h5 {[%emt 0:00:08]} 35. g4 {[%emt 0:00:05]} hxg4+ {[%emt 0:00:02]} 36. Qxg4 {[%emt 0:00:01]} f5 {[%emt 0:00:08]} 37. Qc4+ {[%emt 0:00:03]} Kh7 {[%emt 0:00:08]} 38. Qh4+ {[%emt 0:00:02]} Kg8 {[%emt 0:00:04]} 39. Bc4+ {[%emt 0:00:01]} 1-0